fUST/lending_fUST_20240401
["ID","MTS","AMOUNT","RATE_DAILY","PERIOD"]
[321196008,1711969838183,-2109.29026241,0.00038509,2]
[321196009,1711969838192,-2099.58,0.00038509,4]
[321196010,1711969838201,-400.0,0.00038509,3]
[321196011,1711969838210,-5575.09965477,0.0003851,4]
[321196012,1711969838222,-594.7079274,0.00038513,2]
[321196013,1711969838231,-400.0,0.00038514,3]
[321196014,1711969838240,-361.0,0.00038521,2]
[321196015,1711969838251,-1633.70121627,0.00038521,2]
[321196016,1711969838260,-1874.25908625,0.0003972,2]
[321196017,1711969838269,-16049.25302276,0.0003982,4]
[321196018,1711969838278,-206.46303179,0.0003982,2]
[321196019,1711969838287,-248.41569543,0.00039992,4]
[321196020,1711969838296,-1319.94243816,0.00039992,4]
[321196021,1711969838306,-164.355028,0.0004,2]
[321196022,1711969838390,-1874.25908623,0.00040429,2]
[321196023,1711969838401,-1452.94721261,0.000405,10]
[321196024,1711969838411,-652.64374368,0.00040759,2]
[321196025,1711969838420,-1433.22937411,0.00040789,4]
[321196026,1711969838430,-277.18630955,0.00040789,4]
[321196027,1711969838440,-154.92619913,0.00040789,4]
[321196028,1711969838451,-24900.0,0.0004079,2]
[321196029,1711969838461,-169.314197,0.00040876,2]
[321196030,1711969838470,-235.097995,0.00040959,2]
[321196031,1711969838479,-166.666666,0.00041096,2]
[321196032,1711969838489,-1874.25908623,0.00041139,2]
[321196033,1711969838499,-560.0,0.0004114,3]
[321196034,1711969838508,-3395.35867629,0.00041492,4]
[321196035,1711969838517,-1874.25908623,0.00041848,2]
[321196036,1711969838526,-166.666666,0.00042058,2]
[321196037,1711969838535,-516.0,0.00042365,3]
[321196038,1711969838545,-1874.25908623,0.00042557,2]
[321196039,1711969838554,-292.20478428,0.00042597,4]
[321196040,1711969838563,-156.25875454,0.00042597,4]
[321196041,1711969838574,-370.42742761,0.00042597,4]
[321196042,1711969838583,-309.6903097,0.00042598,4]
[321196043,1711969838595,-4980.54546039,0.00042598,4]
[321196044,1711969838607,-264.26939875,0.00042599,7]
[321196045,1711969838617,-313.96059732,0.00042599,4]
[321196046,1711969838627,-276.98014823,0.00042599,4]
[321196047,1711969838636,-262.72709575,0.00042599,4]
[321196048,1711969838647,-2000.0,0.000426,2]
[321196049,1711969838657,-909.62241761,0.00042639,2]
[321196050,1711969838666,-13854.78402661,0.00042639,32]
[321196051,1711969838676,-11082.93778099,0.00042639,31]
[321196052,1711969838685,-500.0,0.00042649,2]
[321196053,1711969838695,-5327.55015659,0.00042649,4]
[321196054,1711969838705,-251.70125948,0.00042657,4]
[321196055,1711969838714,-1949.22736861,0.00042657,4]
[321196056,1711969838723,-827.07205754,0.00042657,4]
[321196057,1711969838733,-8546.63451153,0.00042657,4]
[321196058,1711969838742,-720.93630147,0.00042657,4]
[321196059,1711969838752,-254.18026618,0.00042658,4]
[321196060,1711969838761,-330.0727662,0.00042658,4]
[321196061,1711969838770,-500.0,0.00042703,2]
[321196062,1711969838780,-500.0,0.00042758,2]
[321196063,1711969838789,-500.0,0.00042813,2]
[321196064,1711969838799,-500.0,0.00042868,2]
[321196065,1711969838809,-613.1079328,0.00042923,2]
[321196066,1711969838818,-166.666666,0.00043019,2]
[321196067,1711969838827,-107640.04771717,0.00043333,2]
[321196068,1711969838836,-150.8642222,0.00043472,2]
[321196069,1711969838846,-250.26564092,0.00043472,2]
[321196070,1711969838855,-1633.70121627,0.00043521,2]
[321196071,1711969838864,-783.0,0.00043951,3]
[321196072,1711969838874,-166.666666,0.00043981,2]
[321196073,1711969838883,-301.7284444,0.00044202,4]
[321196074,1711969838892,-166.666666,0.00044942,2]
[321196075,1711969838902,-603.4568888,0.00044945,7]
[321196076,1711969838911,-8676.15065072,0.00045,120]
[321196077,1711969838921,-64450.60484434,0.00045,30]
[321196078,1711969838959,-1000.0,0.00045,2]
[321196079,1711969838992,-166.666666,0.00045904,2]
[321196080,1711969839003,-12718.85148701,0.00046,2]
[321196081,1711969839013,-1206.9137776,0.00046083,30]
[321196082,1711969839022,-370.309569,0.00046457,120]
[321196083,1711969839031,-510.0,0.00046954,3]
[321196084,1711969839040,-1633.70121627,0.00048521,2]
[321196085,1711969839050,-3361.32360003,0.00049,120]
[321196086,1711969839060,-5618.0,0.00049,120]
[321196087,1711969839069,-951.80353207,0.0005,60]
[321196088,1711969839078,-893.3168724,0.0005,120]
[321196089,1711969839087,-80258.06299484,0.0005,120]
[321196090,1711969839096,-191.53579377,0.0005,120]
[321196091,1711969839106,-205.83558861,0.0005,20]
[321196092,1711969839114,-11018.61198166,0.0005,30]
[321196093,1711969839124,-64799.32553868,0.0005,2]
[321196094,1711969839236,-2314.46063713,0.0005,2]
[321196095,1711969839249,-2357.7410405,0.0005,2]
[321196096,1711969839264,-678.36501058,0.0005,2]
[321196128,1711969840258,-2655.25903637,0.0005,2]
[321196131,1711969840270,-229.37135426,0.0005,120]
[321196133,1711969840282,-7014.14626355,0.0005,120]
[321196135,1711969840296,-1485.69428198,0.0005,120]
[321196138,1711969840309,-1618.55403302,0.0005,2]
[321196140,1711969840321,-151.0,0.0005,7]
[321196142,1711969840333,-354.103297,0.0005,7]
[321196145,1711969840346,-354.103297,0.0005,7]
[321196147,1711969840358,-151.0,0.0005,7]
[321196150,1711969840371,-151.0,0.0005,7]
[321196152,1711969840384,-151.0,0.0005,7]
[321196154,1711969840394,-165.325159,0.0005,7]
[321196156,1711969840404,-151.0,0.0005,7]
[321196159,1711969840414,-1610.625227,0.0005,7]
[321196161,1711969840425,-944.47936105,0.0005,7]
[321196165,1711969840452,-666.14586595,0.0005,7]
[321196168,1711969840464,-151.0,0.0005,7]
[321196170,1711969840476,-151.0,0.0005,7]
[321196172,1711969840487,-151.0,0.0005,7]
[321196174,1711969840499,-208.2060555,0.00050356,2]
[321196176,1711969840511,-202.3118837,0.00050359,2]
[321196178,1711969840522,-202.3118837,0.00050359,2]
[321196181,1711969840534,-202.3118837,0.00050359,2]
[321196183,1711969840545,-202.3118837,0.00050359,2]
[321196185,1711969840556,-202.3118837,0.0005118,2]
[321196187,1711969840568,-202.3118837,0.0005118,2]
[321196189,1711969840579,-202.3118837,0.0005118,2]
[321196192,1711969840593,-202.3118837,0.0005118,2]
[321196194,1711969840606,-202.3118837,0.0005118,2]
[321196195,1711969840619,-202.3118837,0.0005118,2]
[321196196,1711969840631,-202.3118837,0.0005118,2]
[321196197,1711969840644,-202.3118837,0.0005118,2]
[321196198,1711969840657,-202.3118837,0.0005118,2]
[321196199,1711969840670,-202.3118837,0.0005118,2]
[321196200,1711969840684,-306.0,0.00051191,2]
[321196201,1711969840696,-153.0,0.00051191,2]
[321196202,1711969840708,-202.3118837,0.00051191,2]
[321196203,1711969840720,-202.3118837,0.00051191,2]
[321196204,1711969840730,-202.3118837,0.00051191,2]
[321196205,1711969840741,-202.3118837,0.00051191,2]
[321196206,1711969840757,-202.3118837,0.00051191,2]
[321196207,1711969840770,-202.3118837,0.00051191,2]
[321196209,1711969840781,-202.3118837,0.00051191,2]
[321196211,1711969840792,-200.6989629,0.00051191,2]
[321196214,1711969840803,-306.0,0.00051878,2]
[321196216,1711969840815,-420.49955795,0.00052,30]
[321196473,1711969843274,-156.32236114,0.00049999,4]
[321196475,1711969843285,-202.3118837,0.00050359,2]
[321196477,1711969843295,-608.38608608,0.00052,30]
[321196479,1711969843308,-286.4128835,0.00052,30]
[321196481,1711969843317,-160.04425345,0.00052574,60]
[321196483,1711969843326,-500.0,0.00053,2]
[321196485,1711969843335,-237.0,0.00053,120]
[321196487,1711969843345,-370.309569,0.00053094,120]
[321196489,1711969843354,-237.0,0.00053699,120]
[321196491,1711969843363,-369.693494,0.00053978,2]
[321196493,1711969843372,-202.21811,0.00053978,2]
[321196495,1711969843382,-500.0,0.00054,2]
[321196497,1711969843392,-1000.0,0.00054,2]
[321196499,1711969843402,-160.04425345,0.0005436,60]
[321196501,1711969843412,-4229.20817464,0.00054694,2]
[321196503,1711969843421,-500.0,0.00054794,120]
[321196505,1711969843431,-500.0,0.00054794,120]
[321196507,1711969843444,-500.0,0.00054794,120]
[321196509,1711969843454,-375.7331812,0.00054794,120]
[321196512,1711969843463,-500.0,0.00054794,120]
[321196513,1711969843472,-503.24009158,0.00054794,30]
[321196515,1711969843482,-500.0,0.00054794,120]
[321196517,1711969843491,-500.0,0.00054794,120]
[321196518,1711969843502,-500.0,0.00054794,120]
[321196520,1711969843510,-501.65021264,0.00054794,120]
[321196522,1711969843520,-500.0,0.00054794,120]
[321196524,1711969843530,-230.24715024,0.00054794,120]
[321196526,1711969843539,-500.0,0.00054794,120]
[321196527,1711969843549,-503.20142314,0.00054794,120]
[321196529,1711969843557,-363.71834965,0.00054794,120]
[321196531,1711969843567,-439.90220259,0.00054794,120]
[321196532,1711969843576,-500.0,0.00054794,120]
[321196533,1711969843585,-500.8773165,0.00054794,120]
[321196534,1711969843597,-503.04262834,0.00054794,120]
[321196535,1711969843608,-426.9398392,0.00054794,120]
[321196536,1711969845297,-73.0601608,0.00054794,120]
[321196537,1711969845307,-152.03972185,0.00054794,120]
[321196538,1711969845316,-499.53685194,0.00054794,120]
[321196539,1711969845326,-199.36326541,0.00054794,120]
[321196541,1711969865971,175.67,0.00035,2]
[321196542,1711969866000,24613.22771268,0.00035,2]
[321196545,1711969923607,647.34381997,0.0004,5]
[321196550,1711970533471,254.88928753,0.0004,30]
[321196553,1711970709609,3776.67474075,0.0003,2]
[321196554,1711970719453,250.0,0.0004,90]
[321196620,1711971040426,-325.34410891,0.00037893,4]
[321196622,1711971040435,-252.81959649,0.00037894,2]
[321196624,1711971040445,-708.63831022,0.000379,2]
[321196626,1711971040454,-1269.17204717,0.00039817,4]
[321196719,1711971043552,-2497.01639322,0.00039817,4]
[321196720,1711971043564,-3476.02312491,0.00039817,4]
[321196726,1711971043976,-508.90639987,0.00039817,4]
[321196727,1711971043985,-400.0,0.00039817,3]
[321196728,1711971043994,-1164.1882961,0.00039818,4]
[321196729,1711971044003,-252.64893181,0.0004,4]
[321196730,1711971044013,-165.142435,0.0004,2]
[321196731,1711971044022,-822.842984,0.00040701,2]
[321196732,1711971044032,-185.154784,0.0004075,120]
[321196733,1711971044042,-166.666666,0.00041096,2]
[321196734,1711971044051,-1850.0994147,0.00041265,2]
[321196735,1711971044060,-16738.04422759,0.00041427,2]
[321196743,1711971046443,-8161.95577241,0.00041427,2]
[321196744,1711971046452,-337.5328967,0.00041647,2]
[321196745,1711971046462,-166.666666,0.00042058,2]
[321196746,1711971046471,-708.63831022,0.000429,2]
[321196747,1711971046480,-166.666666,0.00043019,2]
[321196748,1711971046489,-510.9833183,0.00043738,2]
[321196749,1711971046499,-166.734957,0.00043773,2]
[321196750,1711971046509,-166.666666,0.00043981,2]
[321196751,1711971046518,-9978.1649729,0.00044014,2]
[321196752,1711971046528,-157.35193539,0.00044254,30]
[321196753,1711971046537,-166.666666,0.00044942,2]
[321196754,1711971046546,-2062.48340947,0.00045,120]
[321196756,1711971050262,171.526531,0.00035,2]
[321196757,1711971050291,15032.0885868,0.00035,2]
[321196759,1711971239456,3284.0,0.00035,2]
[321196761,1711971312070,471.0,0.00035,2]
[321196764,1711971613804,838.0,0.00033977,30]
[321196765,1711971636319,839.0,0.00036001,2]
[321196770,1711972010614,236.21277007,0.00033901,2]
[321196771,1711972098374,178.1541895,0.00035,2]
[321196811,1711972232529,-236.21277007,0.00038901,2]
[321196812,1711972232539,-206.00310655,0.000398,2]
[321196813,1711972232548,-206.00310653,0.0003985,2]
[321196814,1711972232557,-392.10846667,0.000399,2]
[321196815,1711972232566,-248.45359701,0.000399,2]
[321196816,1711972232575,-206.00310653,0.000399,2]
[321196817,1711972232584,-174.87726863,0.00039999,4]
[321196819,1711972232595,-1454.01616464,0.00039999,4]
[321196859,1711972238623,-6122.2245319,0.00039999,4]
[321196861,1711972238632,-4929.74073348,0.0004,4]
[321196862,1711972238642,-163.350749,0.0004,2]
[321196865,1711972238651,-167.852602,0.0004,2]
[321196867,1711972238661,-166.666666,0.00041836,2]
[321196869,1711972238670,-168.389324,0.00042086,2]
[321196870,1711972238679,-1347.78053824,0.00042275,2]
[321196945,1711972246644,-0.13509703,0.00042275,2]
[321196947,1711972287219,2337.44555347,0.00039998,120]
[321196950,1711972438994,802.18581042,0.00039998,20]
[321196953,1711972550689,5000.0,0.0004,5]
[321196956,1711972641663,538.6,0.00035,2]
[321196960,1711972961440,185.712182,0.00039313,120]
[321196962,1711973217166,-226.05313035,0.00037899,4]
[321196963,1711973222070,400.0,0.00038765,5]
[321196964,1711973253092,-346.6445275,0.00037899,4]
[321196965,1711973282601,400.0,0.00038765,5]
[321196967,1711973341399,400.0,0.00038765,5]
[321196971,1711973402139,400.0,0.00038765,5]
[321196972,1711973416624,175.67,0.00035,2]
[321196983,1711973433925,-3695.41775164,0.00037899,4]
[321197012,1711973439183,-3483.00255568,0.00037899,4]
[321197013,1711973439192,-1187.64348645,0.000379,2]
[321197014,1711973439202,-769.53684,0.00038486,2]
[321197015,1711973439210,-400.0,0.00038765,3]
[321197016,1711973439219,-1884.4278329,0.00038766,2]
[321197017,1711973439228,-166.734957,0.00039124,2]
[321197018,1711973439237,-338.27735241,0.00039257,2]
[321197019,1711973439246,-24900.0,0.00039258,2]
[321197020,1711973439255,-155.2374134,0.00039998,4]
[321197021,1711973439264,-155.20830486,0.00039998,2]
[321197022,1711973439273,-3778.48500384,0.00039999,4]
[321197023,1711973439283,-166.309264,0.0004,2]
[321197024,1711973439292,-277.89824219,0.000405,10]
[321197025,1711973439301,-2103.50134955,0.000405,7]
[321197026,1711973439310,-2099.49695903,0.00040796,4]
[321197027,1711973439321,-290.1758426,0.00040797,4]
[321197028,1711973439330,-382.51975869,0.00040996,2]
[321197029,1711973439338,-166.666666,0.00041096,2]
[321197030,1711973439347,-560.0,0.00041402,3]
[321197031,1711973439356,-560.0,0.00041402,5]
[321197032,1711973439365,-166.666666,0.00042058,2]
[321197033,1711973439374,-382.51975868,0.00042099,2]
[321197034,1711973439383,-699.15,0.00042274,4]
[321197035,1711973439392,-150.87929656,0.00042339,2]
[321197036,1711973439401,-250.29064748,0.00042339,2]
[321197037,1711973439410,-909.62241761,0.0004255,2]
[321197038,1711973439419,-756.68166595,0.0004255,2]
[321197039,1711973439429,-13854.78402661,0.0004255,32]
[321197040,1711973439438,-11082.93778099,0.0004255,31]
[321197041,1711973439447,-3832.0,0.0004255,2]
[321197042,1711973439457,-4000.0,0.0004255,4]
[321197043,1711973439466,-1187.64348645,0.000429,2]
[321197044,1711973439475,-166.666666,0.00043019,2]
[321197045,1711973439484,-301.75859313,0.0004305,4]
[321197046,1711973439493,-382.51975868,0.00043202,2]
[321197047,1711973439502,-603.51718625,0.00043774,7]
[321197048,1711973439510,-166.666666,0.00043981,2]
[321197049,1711973439519,-783.0,0.00044219,3]
[321197050,1711973439528,-783.0,0.00044219,5]
[321197051,1711973439536,-382.51975868,0.00044305,2]
[321197052,1711973439545,-1207.0343725,0.00044882,30]
[321197053,1711973439636,-166.666666,0.00044942,2]
[321197054,1711973439647,-1454.01616464,0.00044999,4]
[321197055,1711973439657,-385.27448771,0.00044999,4]
[321197056,1711973439665,-8676.15065072,0.00045,120]
[321197057,1711973439675,-3181.03700563,0.00045,120]
[321197058,1711973439684,-64450.60484434,0.00045,30]
[321197059,1711973439696,-382.51975868,0.00045408,2]
[321197060,1711973439706,-185.712182,0.00045866,120]
[321197061,1711973439716,-166.666666,0.00045904,2]
[321197062,1711973439725,-6010.58283832,0.0004698,120]
[321197063,1711973439734,-750.0,0.00047228,3]
[321197064,1711973439744,-1097.0,0.00047228,5]
[321197065,1711973439753,-1187.64348645,0.000479,2]
[321197066,1711973439763,-169.314197,0.0004793,2]
[321197067,1711973439772,-159.90337032,0.00048784,30]
[321197068,1711973439782,-3361.32360003,0.00049,120]
[321197069,1711973439791,-5618.86468376,0.00049,120]
[321197070,1711973439801,-156.23464849,0.00049426,30]
[321197071,1711973439810,-3938.21746549,0.000498,120]
[321197072,1711973439821,-216.76594596,0.00049999,4]
[321197073,1711973439830,-595.5445816,0.0005,120]
[321197074,1711973439840,-951.80353207,0.0005,60]
[321197075,1711973439849,-8499.84054553,0.0005,120]
[321197076,1711973439859,-191.53579377,0.0005,120]
[321197077,1711973439869,-205.83558861,0.0005,20]
[321197078,1711973439878,-11018.61198166,0.0005,30]
[321197079,1711973439888,-64799.32553868,0.0005,2]
[321197080,1711973439897,-151.0,0.0005,7]
[321197081,1711973439907,-372.473095,0.0005,7]
[321197082,1711973439916,-372.473095,0.0005,7]
[321197083,1711973439925,-313.970851,0.0005,7]
[321197084,1711973439935,-313.970851,0.0005,7]
[321197085,1711973439944,-151.0,0.0005,7]
[321197086,1711973439954,-318.692967,0.0005,7]
[321197087,1711973439963,-318.692967,0.0005,7]
[321197088,1711973439973,-151.0,0.0005,7]
[321197089,1711973439983,-151.0,0.0005,7]
[321197090,1711973439992,-1457.112704,0.0005,7]
[321197091,1711973440001,-1457.112704,0.0005,7]
[321197092,1711973440011,-151.0,0.0005,7]
[321197094,1711973440020,-151.0,0.0005,7]
[321197095,1711973440029,-151.0,0.0005,7]
[321197096,1711973440038,-151.0,0.0005,7]
[321197097,1711973440047,-1536.0,0.00050441,15]
[321197098,1711973440058,-153.0,0.00051195,2]
[321197099,1711973440067,-208.13050808,0.00052,15]
[321197101,1711973440077,-185.712182,0.00052418,120]
[321197103,1711973440086,-177.0,0.00053,120]
[321197105,1711973440095,-177.0,0.00053699,120]
[321197107,1711973440104,-2151.0,0.00053873,15]
[321197109,1711973440113,-159.90337032,0.00054196,60]
[321197110,1711973440122,-1000.0,0.000542,120]
[321197111,1711973440131,-2202.48598877,0.00054364,120]
[321197207,1711973444018,-211.58275623,0.00054364,120]
[321197208,1711973444027,-4232.94357124,0.00054592,120]
[321197209,1711973444036,-348.50085084,0.00054593,2]
[321197210,1711973444050,-3.90177426,0.00054593,2]
[321197211,1711973444058,-738.64373172,0.000547,120]
[321197212,1711973444068,-3535.83407592,0.00054792,4]
[321197213,1711973444081,-373.66400842,0.00054792,4]
[321197214,1711973444089,-318.04649953,0.00054792,4]
[321197215,1711973444099,-1505.06398234,0.00054793,2]
[321197216,1711973444108,-794.83014187,0.00054793,4]
[321197217,1711973444118,-236.2802,0.00054793,2]
[321197218,1711973444127,-500.51724593,0.00054794,120]
[321197219,1711973444136,-500.0,0.00054794,120]
[321197220,1711973444145,-502.96027814,0.00054794,120]
[321197221,1711973444153,-500.0,0.00054794,120]
[321197222,1711973444162,-503.4201783,0.00054794,120]
[321197223,1711973444172,-500.0,0.00054794,120]
[321197224,1711973444181,-500.0,0.00054794,120]
[321197225,1711973444190,-504.94765612,0.00054794,120]
[321197226,1711973444199,-213.79525524,0.00054794,120]
[321197227,1711973444211,-286.20474476,0.00054794,120]
[321197228,1711973444220,-500.0,0.00054794,120]
[321197229,1711973444229,-500.0,0.00054794,120]
[321197230,1711973444238,-447.56556472,0.00054794,120]
[321197231,1711973444250,-52.43443528,0.00054794,120]
[321197232,1711973444259,-500.0,0.00054794,120]
[321197233,1711973444268,-502.99064633,0.00054794,120]
[321197234,1711973444277,-279.25637742,0.00054794,120]
[321197235,1711973444299,-220.74362258,0.00054794,120]
[321197236,1711973444308,-31.90732153,0.00054794,120]
[321197278,1711973640414,1505.33,0.000378,2]
[321197284,1711974303397,400.0,0.00039994,5]
[321197286,1711974338897,300.0,0.0004,5]
[321197287,1711974364285,400.0,0.00039991,5]
[321197299,1711974451105,-344.6054948,0.00037899,4]
[321197302,1711974481410,400.0,0.00039999,5]
[321197305,1711974514815,171.526531,0.00035,2]
[321197343,1711974638065,-1050.5825103,0.00037896,4]
[321197344,1711974638074,-7751.11796517,0.00037897,4]
[321197345,1711974638083,-400.0,0.00037898,2]
[321197346,1711974638092,-400.0,0.00037898,2]
[321197347,1711974638101,-771.62681087,0.000379,2]
[321197348,1711974638110,-163.350749,0.0004,2]
[321197349,1711974638119,-167.852602,0.0004,2]
[321197350,1711974638207,-560.0,0.00040513,3]
[321197351,1711974638216,-560.0,0.00040513,5]
[321197352,1711974638226,-166.666666,0.00041096,2]
[321197353,1711974638235,-216.76594596,0.00041717,4]
[321197354,1711974638244,-166.666666,0.00042149,2]
[321197355,1711974638254,-15641.0,0.00042557,30]
[321197356,1711974638263,-168.9354948,0.00042561,2]
[321197357,1711974638273,-771.62681087,0.000429,2]
[321197358,1711974638283,-166.666666,0.00043203,2]
[321197359,1711974638293,-783.0,0.00043309,3]
[321197360,1711974638302,-783.0,0.00043309,5]
[321197361,1711974638311,-156.23464849,0.00043432,30]
[321197362,1711974638321,-166.666666,0.00044256,2]
[321197363,1711974638330,-24900.0,0.0004427,2]
[321197364,1711974638339,-8676.15065072,0.00045,120]
[321197365,1711974638349,-166.666666,0.0004531,2]
[321197366,1711974638358,-185.712182,0.00045817,120]
[321197367,1711974638368,-150.87929656,0.00045972,2]
[321197368,1711974638377,-1097.0,0.00046297,3]
[321197369,1711974638386,-1097.0,0.00046297,5]
[321197370,1711974638394,-166.666666,0.00046363,2]
[321197371,1711974638403,-156.23464849,0.00047906,30]
[321197372,1711974638413,-3361.32360003,0.00049,120]
[321197373,1711974638422,-384.76842,0.00049388,2]
[321197374,1711974638431,-1536.0,0.00049492,3]
[321197375,1711974638440,-1536.0,0.00049492,5]
[321197376,1711974638449,-156.23464849,0.00049612,30]
[321197377,1711974638460,-664.93574096,0.00049888,2]
[321197378,1711974638470,-8499.84054553,0.0005,120]
[321197379,1711974638479,-951.80353207,0.0005,60]
[321197380,1711974638488,-33142.38874996,0.0005,2]
[321197381,1711974638498,-150.87929656,0.0005108,2]
[321197382,1711974638507,-800.0,0.000512,2]
[321197383,1711974638516,-800.0,0.000512,3]
[321197384,1711974638525,-328.64208849,0.00051228,4]
[321197385,1711974638534,-301.75859313,0.00051938,4]
[321197386,1711974638543,-603.51718625,0.00052811,7]
[321197387,1711974638552,-2151.0,0.00052907,10]
[321197388,1711974638561,-2151.0,0.00052907,15]
[321197389,1711974638570,-177.0,0.00053,120]
[321197390,1711974638580,-1000.0,0.000532,120]
[321197391,1711974638588,-159.90337032,0.00053668,60]
[321197392,1711974638598,-177.0,0.00053699,120]
[321197393,1711974638607,-1207.0343725,0.00054148,30]
[321197394,1711974638616,-3938.21746549,0.00054594,120]
[321197395,1711974638625,-150.5701,0.000547,2]
[321197396,1711974638635,-10229.81389337,0.00054739,15]
[321197397,1711974638644,-24690.45231509,0.0005478,2]
[321197436,1711974639885,-4542.15177893,0.0005478,2]
[321197442,1711974643115,-8064.95478185,0.0005478,2]
[321197443,1711974643129,-429.75474228,0.0005478,2]
[321197444,1711974643141,-4756.69117702,0.0005478,2]
[321197445,1711974643152,-2575.22850094,0.0005478,2]
[321197446,1711974643163,-769.40652503,0.0005478,2]
[321197479,1711974645997,-88434.84804308,0.0005478,2]
[321197480,1711974646006,-2398.94502226,0.00054793,120]
[321197481,1711974646015,-106377.06880534,0.00054794,61]
[321197482,1711974646025,-595.5445816,0.00054794,120]
[321197483,1711974646037,-2759.36659217,0.00054794,120]
[321197484,1711974646046,-500.0,0.00054794,120]
[321197485,1711974646056,-500.0,0.00054794,120]
[321197486,1711974646066,-500.0,0.00054794,120]
[321197487,1711974646076,-500.0,0.00054794,120]
[321197488,1711974646085,-501.08672484,0.00054794,120]
[321197489,1711974646094,-500.0,0.00054794,120]
[321197490,1711974646104,-576.90264692,0.00054794,120]
[321197491,1711974646114,-500.0,0.00054794,120]
[321197492,1711974646124,-500.0,0.00054794,120]
[321197493,1711974646134,-500.0,0.00054794,120]
[321197494,1711974646144,-500.0,0.00054794,120]
[321197495,1711974646153,-500.0,0.00054794,120]
[321197496,1711974646163,-151.0,0.00054794,120]
[321197497,1711974646172,-500.0,0.00054794,120]
[321197498,1711974646182,-554.32,0.00054794,120]
[321197499,1711974646192,-502.59356174,0.00054794,120]
[321197500,1711974646201,-500.0,0.00054794,120]
[321197501,1711974646210,-500.0,0.00054794,120]
[321197502,1711974646219,-500.0,0.00054794,120]
[321197503,1711974646229,-578.72836763,0.00054794,120]
[321197504,1711974646238,-500.0,0.00054794,120]
[321197505,1711974646247,-500.0,0.00054794,120]
[321197506,1711974646256,-514.09183832,0.00054794,120]
[321197507,1711974646265,-372.473095,0.00054794,7]
[321197508,1711974646274,-372.473095,0.00054794,7]
[321197509,1711974646283,-372.473095,0.00054794,7]
[321197510,1711974646292,-500.0,0.00054794,120]
[321197511,1711974646301,-500.0,0.00054794,120]
[321197512,1711974646310,-881.0,0.00054794,120]
[321197513,1711974646319,-500.0,0.00054794,120]
[321197514,1711974646328,-503.19708029,0.00054794,120]
[321197515,1711974646337,-576.57389318,0.00054794,120]
[321197516,1711974646346,-628.8,0.00054794,120]
[321197517,1711974646356,-500.0,0.00054794,120]
[321197518,1711974646366,-500.0,0.00054794,120]
[321197519,1711974646375,-581.78548049,0.00054794,120]
[321197520,1711974646385,-500.0,0.00054794,120]
[321197521,1711974646394,-500.0,0.00054794,120]
[321197522,1711974646403,-500.0,0.00054794,120]
[321197523,1711974646412,-500.0,0.00054794,120]
[321197524,1711974646422,-500.0,0.00054794,120]
[321197525,1711974646432,-504.16307232,0.00054794,120]
[321197526,1711974646441,-313.970851,0.00054794,7]
[321197527,1711974646451,-313.970851,0.00054794,7]
[321197528,1711974646461,-313.970851,0.00054794,7]
[321197529,1711974646471,-313.970851,0.00054794,7]
[321197530,1711974646481,-500.0,0.00054794,120]
[321197531,1711974646491,-313.970851,0.00054794,7]
[321197532,1711974646500,-313.970851,0.00054794,7]
[321197533,1711974646509,-313.970851,0.00054794,7]
[321197534,1711974646518,-500.0,0.00054794,120]
[321197535,1711974646528,-313.970851,0.00054794,7]
[321197536,1711974646537,-313.970851,0.00054794,7]
[321197537,1711974646546,-313.970851,0.00054794,7]
[321197538,1711974646556,-313.970851,0.00054794,7]
[321197539,1711974646565,-313.970851,0.00054794,7]
[321197540,1711974646576,-313.970851,0.00054794,7]
[321197541,1711974646585,-313.970851,0.00054794,7]